Workbook

Sheet Cover
P2: วิธีใช้ | AC2: SR24 | AD2: 2400
P3: ป้อนค่าเฉพาะเซล สีน้ำเงิน | AC3: SD30 | AD3: 3000
E4: Concrete Cantilever Retaining Wall | AC4: SD40 | AD4: 4000
C6: Project : | D6: RC. Cantilever Retaining Wall L
C8: Owner : | D8: Advisory Group
Q9: Design criteria
C10: Location : | D10: Chiang Rai
C12: Engineer : | D12: Neung Civil
Q13: Main
C14: Date : | D14: 2021-01-12
Q17: Weight
X21: วสท | Y21: =J20*K17 -> 0
X22: พรบ 65 ksc | Y22: 65

Sheet Design criteria
C2: Project | D2: =Cover!D6 -> RC. Cantilever Retaining Wall L | J2: Cantilever Retaining Wall | P2: วิธีใช้ | AC2: SR24 | AD2: 2400
C3: Owner | D3: =Cover!D8 -> Advisory Group | J3: Engineer | K3: Wall No. | L3: Date | P3: ป้อนค่าเฉพาะเซล สีน้ำเงิน | AC3: SD30 | AD3: 3000
C4: Location | D4: =Cover!D10 -> Chiang Rai | J4: =Cover!D12 -> Neung Civil | K4: RW02 | L4: =Cover!D14 -> 2021-01-12 | AC4: SD40 | AD4: 4000
C7: ข้อกำหนดในการออกแบบโครงสร้าง
C8: ( DESIGN CRITERIA )
Q9: Main
C10: กฏข้อบังคับ
C11: : กฏกระทรวงฉบับที่ 6 พ.ศ. 2527 ออกตามความใน พ.ร.บ. ควบคุมอาคาร พ.ศ. 2522 และ พ.ศ. 2535
C12: : มาตราฐานสำหรับอาคารคอนกรีตเสริมเหล็ก วิศวกรรมสถานแห่งประเทศไทย พ.ศ. 2562
C13: : American Institue of Steel Construction ( AISC.) ,1977 | Q13: Weight
C14: คอนกรีต
C15: : คอนกรีตที่ใช้อัตราส่วนผสมโดยปริมาตร ซีเมนต์ : ทราย : หิน 1 : 2 : 4 หรือ Mixed Design โดยอัตรา
C16: ส่วนผสมน้ำต่อซีเมนต์ ( Water Ratio ) อยู่ระหว่าง 0.50 - 0.60 เพื่อให้กำลังอัดประลัยของแท่งคอนกรีต
C17: ที่อายุ 28 วัน ค่ากำลังอัดประลัย fc' ไม่น้อยกว่า | G17: 350 | I17: ksc | J17: factor = | K17: 0.45
C19: Reinforced Concrete Design
C20: : Compressive Stress of Concrete | F20: fc' = | J20: =G17 -> 350 | K20: ksc.
C21: : Allowable Stress of Concrete | F21: fc = | G21: =K17&" f'c " -> 0.45 f'c | I21: = | J21: =IF(L21="วสท",Y21,Y22) -> 157.5 | K21: ksc. | L21: วสท | X21: วสท | Y21: =J20*K17 -> 157.5
C22: : Elastic Modulus of Concrete | F22: Ec = | G22: 15,100 Sqrt (f'c) = | J22: =15100*SQRT(J20) -> 282495.1327 | K22: ksc. | X22: พรบ 65 ksc | Y22: 65
C23: : Elastic Modulus of Reinforced Conc. | F23: Es = | J23: 2040000 | K23: ksc.
F25: Main bar : | G25: SD40 | I25: Other bar : | J25: SD40
C26: : Yeild Stress of Reinforced Concrete | F26: fy | G26: =VLOOKUP(G25,$AC$2:$AD$4,2,FALSE) -> 4000 | J26: =VLOOKUP(J25,$AC$2:$AD$4,2,FALSE) -> 4000 | K26: ksc
C27: : Allowable Stress of Steel | F27: fs | G27: =MIN(G26/2,1700) -> 1700 | J27: =MIN(J26/2,1700) -> 1700 | K27: ksc
C28: Design Parameters :
C29: n = Es / Ec | G29: =MAX(J23/J22,6) -> 7.221363358 | J29: =G29 -> 7.221363358
C30: k = 1 / ( 1+fs / n /fc ) | G30: =1/(1+(G27/G29/J21)) -> 0.4008524943 | J30: =1/(1+(J27/J29/J21)) -> 0.4008524943
C31: j = 1- ( k / 3 ) | G31: =1-(G30/3) -> 0.8663825019 | J31: =1-(J30/3) -> 0.8663825019
C32: R = (0.5 * fc * k * j ) | G32: =0.5*J21*G30*G31 -> 27.34921247 | J32: =0.5*J21*J30*J31 -> 27.34921247 | K32: ksc
G33: =2.29*SQRT(G17) -> 42.84197708
C36: Steel Design
C37: : Yeild Stress of Steel ASTM A-36 or TISI 1227 SS400 | I37: Fy = | J37: 2350 | K37: ksc
C38: : Allowable Shear Stress | F38: Fv | G38: =0.4 Fy | J38: =0.4*$J$37 -> 940 | K38: ksc
C39: : Allowable Tensile Stress | F39: Ft | G39: =0.6 Fy | J39: =0.6*$J$37 -> 1410 | K39: ksc
C40: : Allowable Bending Stress | F40: Fb | G40: =0.6 Fy | J40: =0.6*$J$37 -> 1410 | K40: ksc

Sheet MAIN
V1: bars per | X1: mm | AA1: DIAGRAM
C2: Project | D2: ='Design criteria'!D2 -> RC. Cantilever Retaining Wall L | I2: Cantilever Retaining Wall | P2: วิธีใช้ | W2: 2 | X2: 9 | AA2: 75 | AB2: 50 | AI2: หินแข็ง (Sound rock) | AJ2: 0.6
C3: Owner | D3: ='Design criteria'!D3 -> Advisory Group | I3: RW No. | J3: Engineer | K3: Date | L3: Page | P3: ป้อนค่าเฉพาะเซล สีน้ำเงิน | W3: 3 | X3: 10 | AA3: =AA2 -> 75 | AB3: =D16+AB2 -> 80 | AF3: =(AA7+AA8)/2 -> 162.5 | AI3: ทรายเม็ดป่น (Silt) | AJ3: 0.35 | AM3: Steel Reinforcement | AO3: SECTION
C4: Location | D4: ='Design criteria'!D4 -> Chiang Rai | I4: ='Design criteria'!K4 -> RW02 | J4: ='Design criteria'!J4 -> Neung Civil | K4: ='Design criteria'!L4 -> 2021-01-12 | W4: 4 | X4: 12 | AA4: =D17+AA2 -> 75 | AB4: =AB3 -> 80 | AI4: ดินเม็ดหยาบปนทรายเม็ดป่น | AJ4: 0.45 | AM4: Stem Backfill V | AN4: x | AO4: =AA6-cover-7.5 -> 87.5 | AP4: =AA6-cover -> 95 | AQ4: =AP4 -> 95 | AR4: =AQ4+CEILING(12*I98/10,5) -> 110 | AT4: =AC9 -> 75 | AU4: =MIN(AB2:AB10) -> 50 | AV4: =0.8*MAX(AB2:AB10) -> 224 | AW4: =MAX(AA2:AA10) -> 225
W5: 5 | X5: 16 | AA5: =AA4+D14-D13 -> 80 | AB5: =D11+AB2 -> 280 | AE5: Water | AF5: =IF(E12="yes",1,0) -> 0 | AG5: =AF5*D12 -> 0 | AI5: ดินเม็ดหยาบปราศจากทรายเม็ดป่น | AJ5: 0.4 | AN5: y | AO5: =AB6-cover -> 275 | AP5: =AB6-cover -> 275 | AQ5: =AB2+coverb+7.5 -> 62.5 | AR5: =AQ5 -> 62.5 | AT5: =0.8*AC10 -> 224 | AU5: =AU4+AC10 -> 330
C6: Materials & Design parametars (ksc) | W6: 6 | X6: 20 | AA6: =AA5+D13 -> 100 | AB6: =AB5 -> 280 | AC6: =AA6 -> 100 | AD6: =AB6 -> 280 | AE6: =IF(E12="yes",(AC11+AC12)/2-35,AA2) -> 75 | AF6: =IF(E12="yes",AD11-11,AB2) -> 50 | AJ6: 0.7 | AM6: Stem Backfill H | AN6: x | AO6: =AP4-2 -> 93 | AP6: =AO6 -> 93 | AQ6: =AP6 -> 93 | AR6: 93 | AS6: 93 | AT6: 93 | AU6: 93 | AV6: 93 | AW6: 93 | AX6: 93 | AY6: 93 | AZ6: 93 | BA6: 93 | BB6: 93 | BC6: 93 | BD6: 93 | BE6: 93 | BF6: 93 | BG6: 93 | BH6: 93 | BI6: 93 | BJ6: 93 | BK6: 93 | BL6: 93 | BM6: 93 | BN6: 93 | BO6: 93 | BP6: 93 | BQ6: 93 | BR6: 93 | BS6: 93 | BT6: 93 | BU6: 93 | BV6: 93 | BW6: 93 | BX6: 93 | BY6: 93 | BZ6: 93 | CA6: 93 | CB6: 93 | CC6: 93 | CD6: 93 | CE6: 93 | CF6: 93 | CG6: 93 | CH6: 93 | CI6: 93 | CJ6: 93 | CK6: 93 | CL6: 93 | CM6: 93 | CN6: 93 | CO6: 93 | CP6: 93 | CQ6: 93 | CR6: 93 | CS6: 93 | CT6: 93 | CU6: 93 | CV6: 93 | CW6: 93 | CX6: 93 | CY6: 93 | CZ6: 93 | DA6: 93 | DB6: 93 | DC6: =DB6 -> 93 | DD6: 93 | DE6: 93 | DF6: 93 | DG6: 93 | DH6: 93 | DI6: 93 | DJ6: 93 | DK6: 93 | DL6: 93 | DM6: 93 | DN6: 93 | DO6: 93 | DP6: 93 | DQ6: 93 | DR6: 93
C7: Main bar, fy = | D7: ='Design criteria'!G26 -> 4000 | E7: fc = | F7: =D8*D9 -> 157.5 | G7: n = Es/Ec = | H7: ='Design criteria'!G29 -> 7.221363358 | J7: k = 1/(1+fs/n/fc) = | K7: ='Design criteria'!G30 -> 0.4008524943 | W7: 7 | X7: 25 | AA7: =AA6 -> 100 | AB7: =AB3 -> 80 | AC7: =AA8 -> 225 | AD7: =AD6+D18*TAN(RADIANS(Slope)) -> 280 | AE7: =IF(E12="yes",(AC11+AC12)/2+35,AA2) -> 75 | AF7: =AF6 -> 50 | AI7: x | AJ7: y | AL7: =100*AI91 -> 42.5 | AM7: =AO7-AL7*FLOOR((AO7-AB3)/AL7,1) -> 103 | AN7: y | AO7: =AP5-2 -> 273 | AP7: =MAX($AM$7,AO7-$AL$7) -> 230.5 | AQ7: =MAX($AM$7,AP7-$AL$7) -> 188 | AR7: =MAX($AM$7,AQ7-$AL$7) -> 145.5 | AS7: 103 | AT7: 103 | AU7: 103 | AV7: 103 | AW7: 103 | AX7: 103 | AY7: 103 | AZ7: 103 | BA7: 103 | BB7: 103 | BC7: 103 | BD7: 103 | BE7: 103 | BF7: 103 | BG7: 103 | BH7: 103 | BI7: 103 | BJ7: 103 | BK7: 103 | BL7: 103 | BM7: 103 | BN7: 103 | BO7: 103 | BP7: 103 | BQ7: 103 | BR7: 103 | BS7: 103 | BT7: 103 | BU7: 103 | BV7: 103 | BW7: 103 | BX7: 103 | BY7: 103 | BZ7: 103 | CA7: 103 | CB7: 103 | CC7: 103 | CD7: 103 | CE7: 103 | CF7: 103 | CG7: 103 | CH7: 103 | CI7: 103 | CJ7: 103 | CK7: 103 | CL7: 103 | CM7: 103 | CN7: 103 | CO7: 103 | CP7: 103 | CQ7: 103 | CR7: 103 | CS7: 103 | CT7: 103 | CU7: 103 | CV7: 103 | CW7: 103 | CX7: 103 | CY7: 103 | CZ7: 103 | DA7: 103 | DB7: 103 | DC7: 103 | DD7: =MAX($AM$7,DC7-$AL$7) -> 103 | DE7: 103 | DF7: 103 | DG7: 103 | DH7: 103 | DI7: 103 | DJ7: 103 | DK7: 103 | DL7: 103 | DM7: 103 | DN7: 103 | DO7: 103 | DP7: 103 | DQ7: 103 | DR7: 103
C8: fc' = | D8: ='Design criteria'!G17 -> 350 | E8: Ec = | F8: ='Design criteria'!J22 -> 282495.1327 | G8: j = 1-(k/3) = | H8: ='Design criteria'!G31 -> 0.8663825019 | J8: R = fc∙k∙j /2 = | K8: ='Design criteria'!G32 -> 27.34921247 | W8: 8 | X8: 28 | AA8: =D15+AA2 -> 225 | AB8: =AB7 -> 80 | AH8: Uni | AI8: =AA6 -> 100 | AJ8: =AB6 -> 280 | AL8: =$AD$90 -> TRUE | AM8: Stem Front V | AN8: x | AO8: =AA5+cover -> 85 | AP8: =AO8-(AO9-AP9)*($AA$5-$AA$4)/($AB$5-$AB$4) -> 84.75 | AQ8: =AA4+cover -> 80 | AR8: =AQ8-(AQ9-AR9)*($AA$5-$AA$4)/($AB$5-$AB$4) -> 79.5625 | AS8: =AR8+CEILING(12*D99/10,5) -> 94.5625
C9: factor = | D9: ='Design criteria'!K17 -> 0.45 | E9: Es = | F9: ='Design criteria'!J23 -> 2040000 | W9: 9 | X9: 32 | AA9: =AA8 -> 225 | AB9: =AB2 -> 50 | AC9: =AA2 -> 75 | AD9: =MIN(AB2:AB18) -> 20 | AE9: =IF(E12="yes",AE6+15,AA2) -> 75 | AF9: =IF(E12="yes",AF6-8,AB2) -> 50 | AI9: =AI8 -> 100 | AJ9: =AJ8+IF(q>=5,50,IF(q>0,MAX(10*q,20),10*q)) -> 300 | AN9: y | AO9: =AB5 -> 280 | AP9: =AO9-(cover+5) -> 270 | AQ9: =AB3 -> 80 | AR9: =AQ5 -> 62.5 | AS9: =AR9 -> 62.5
C10: Dimensions (cm) | E10: Hint | W10: 10 | AA10: =AA2 -> 75 | AB10: =AB9 -> 50 | AC10: =MAX(AA8,AB5) -> 280 | AD10: =AD9+AC10 -> 300 | AE10: =IF(E12="yes",AE7-15,AA2) -> 75 | AF10: =AF9 -> 50 | AI10: =$AI$8+($AI$22-$AI$8)/5 -> 125 | AJ10: =AJ9+($AJ$23-$AJ$8)/5 -> 300 | AL10: =AP10-AL11*FLOOR((AP11-AB3)/AL11,1)*($AA$5-$AA$4)/($AB$5-$AB$4) -> 82.25 | AM10: Stem Front H | AN10: x | AO10: =AO8+2 -> 87 | AP10: =AP8+2 -> 86.75 | AQ10: =MAX(AP10-$AL$11*($AA$5-$AA$4)/($AB$5-$AB$4),$AL$10) -> 85.625 | AR10: =MAX(AQ10-$AL$11*($AA$5-$AA$4)/($AB$5-$AB$4),$AL$10) -> 84.5 | AS10: =MAX(AR10-$AL$11*($AA$5-$AA$4)/($AB$5-$AB$4),$AL$10) -> 83.375 | AT10: 82.25 | AU10: 82.25 | AV10: 82.25 | AW10: 82.25 | AX10: 82.25 | AY10: 82.25 | AZ10: 82.25 | BA10: 82.25 | BB10: 82.25 | BC10: 82.25 | BD10: 82.25 | BE10: 82.25 | BF10: 82.25 | BG10: 82.25 | BH10: 82.25 | BI10: 82.25 | BJ10: 82.25 | BK10: 82.25 | BL10: 82.25 | BM10: 82.25 | BN10: 82.25 | BO10: 82.25 | BP10: 82.25 | BQ10: 82.25 | BR10: 82.25 | BS10: 82.25 | BT10: 82.25 | BU10: 82.25 | BV10: 82.25 | BW10: 82.25 | BX10: 82.25 | BY10: 82.25 | BZ10: 82.25 | CA10: 82.25 | CB10: 82.25 | CC10: 82.25 | CD10: 82.25
C11: High, H = | D11: 230 | E11: <= 750 | P11: Criteria | R11: Weight | AC11: =IF(E12="yes",AC6,AA2) -> 75 | AD11: =D12+AB2 -> 50 | AH11: Uni | AI11: =AI10 -> 125 | AJ11: =AJ10-AJ9+AJ8 -> 280 | AL11: =100*AI90 -> 45 | AM11: =AP11-AL11*FLOOR((AP11-AB3)/AL11,1) -> 90 | AN11: y | AO11: =AO9 -> 280 | AP11: =AP9 -> 270 | AQ11: =MAX($AM$11,AP11-$AL$11) -> 225 | AR11: =MAX($AM$11,AQ11-$AL$11) -> 180 | AS11: =MAX($AM$11,AR11-$AL$11) -> 135 | AT11: =MAX($AM$11,AS11-$AL$11) -> 90 | AU11: =MAX($AM$11,AT11-$AL$11) -> 90 | AV11: =MAX($AM$11,AU11-$AL$11) -> 90 | AW11: 90 | AX11: 90 | AY11: 90 | AZ11: 90 | BA11: 90 | BB11: 90 | BC11: 90 | BD11: 90 | BE11: 90 | BF11: 90 | BG11: 90 | BH11: 90 | BI11: 90 | BJ11: 90 | BK11: 90 | BL11: 90 | BM11: 90 | BN11: 90 | BO11: 90 | BP11: 90 | BQ11: 90 | BR11: 90 | BS11: 90 | BT11: 90 | BU11: 90 | BV11: 90 | BW11: 90 | BX11: 90 | BY11: 90 | BZ11: 90 | CA11: 90 | CB11: 90 | CC11: 90 | CD11: 90
C12: Water Height , Hw = | D12: 0 | E12: No | W12: OUTLINE | X12: OUTLINE | Z12: q all | AA12: =AA2 -> 75 | AB12: =AB2-2.5*D30 -> 20 | AC12: =IF(E12="yes",AC7,AA2) -> 75 | AD12: =AD11 -> 50 | AE12: =IF(E12="yes",AE9+10,AA2) -> 75 | AF12: =IF(E12="yes",AF9-6,AB2) -> 50 | AI12: =AI11 -> 125 | AJ12: =AJ10 -> 300 | AL12: Plot | AM12: Stem Front V | AN12: x | AO12: =IF($AD$90,AO8,$AO$4) -> 85 | AP12: =IF($AD$90,AP8,$AO$4) -> 84.75 | AQ12: 80 | AR12: 79.5625 | AS12: 94.5625 | AT12: =IF($AD$89,AT8,$AO$6) -> 0 | AU12: 0 | AV12: 0 | AW12: 0 | AX12: 0 | AY12: 0 | AZ12: 0 | BA12: 0 | BB12: 0 | BC12: 0 | BD12: 0 | BE12: 0 | BF12: 0 | BG12: 0 | BH12: 0 | BI12: 0 | BJ12: 0 | BK12: 0 | BL12: 0 | BM12: 0 | BN12: 0 | BO12: 0 | BP12: 0 | BQ12: 0 | BR12: 0 | BS12: 0 | BT12: 0 | BU12: 0 | BV12: 0 | BW12: 0 | BX12: 0 | BY12: 0 | BZ12: 0 | CA12: 0 | CB12: 0 | CC12: 0 | CD12: 0 | CE12: 0 | CF12: 0 | CG12: 0 | CH12: 0 | CI12: 0 | CJ12: 0 | CK12: 0 | CL12: 0 | CM12: 0 | CN12: 0 | CO12: 0 | CP12: 0 | CQ12: 0 | CR12: 0 | CS12: 0 | CT12: 0 | CU12: 0 | CV12: 0 | CW12: 0 | CX12: 0 | CY12: 0 | CZ12: 0 | DA12: 0 | DB12: 0 | DC12: 0 | DD12: =IF($AD$89,DD8,$AO$6) -> 0 | DE12: 0 | DF12: 0 | DG12: 0 | DH12: 0 | DI12: 0 | DJ12: 0 | DK12: 0 | DL12: 0 | DM12: 0 | DN12: 0 | DO12: 0 | DP12: 0 | DQ12: 0 | DR12: 0
C13: Stem thk. Top ,ts1 = | D13: 20 | E13: 20-30 | AA13: =AA8 -> 225 | AB13: =AB12 -> 20 | AE13: =IF(E12="yes",AE10-10,AA2) -> 75 | AF13: =AF12 -> 50 | AI13: =$AI$8+($AI$22-$AI$8)/5*2 -> 150 | AJ13: =AJ12+($AJ$23-$AJ$8)/5 -> 300 | AN13: y | AO13: =IF($AD$90,AO9,$AO$5) -> 280 | AP13: =IF($AD$90,AP9,$AO$5) -> 270 | AQ13: 80 | AR13: 62.5 | AS13: 62.5
C14: Stem thk. Bot ,ts2 = | D14: 25 | E14: =">= "&FIXED(AA27,0) -> >= 20 | X14: Yes | Z14: qs | AA14: =AA2 -> 75 | AB14: =AB2 -> 50 | AI14: =AI13 -> 150 | AJ14: =AJ13-AJ12+AJ11 -> 280 | AM14: Stem Front H | AN14: x | AO14: =IF($AD$90,AO10,$AO$6) -> 87 | AP14: =IF($AD$90,AP10,$AO$6) -> 86.75 | AQ14: =IF($AD$90,AQ10,$AO$6) -> 85.625 | AR14: =IF($AD$90,AR10,$AO$6) -> 84.5 | AS14: 83.375 | AT14: 82.25 | AU14: 82.25 | AV14: 82.25 | AW14: 82.25 | AX14: 82.25 | AY14: 82.25 | AZ14: 82.25 | BA14: 82.25 | BB14: 82.25 | BC14: 82.25 | BD14: 82.25 | BE14: 82.25 | BF14: 82.25 | BG14: 82.25 | BH14: 82.25 | BI14: 82.25 | BJ14: 82.25 | BK14: 82.25 | BL14: 82.25 | BM14: 82.25 | BN14: 82.25 | BO14: 82.25 | BP14: 82.25 | BQ14: 82.25 | BR14: 82.25 | BS14: 82.25 | BT14: 82.25 | BU14: 82.25 | BV14: 82.25 | BW14: 82.25 | BX14: 82.25 | BY14: 82.25 | BZ14: 82.25 | CA14: 82.25 | CB14: 82.25 | CC14: 82.25 | CD14: 82.25 | CE14: 0 | CF14: 0 | CG14: 0 | CH14: 0 | CI14: 0 | CJ14: 0 | CK14: 0 | CL14: 0 | CM14: 0 | CN14: 0 | CO14: 0 | CP14: 0 | CQ14: 0 | CR14: 0 | CS14: 0 | CT14: 0 | CU14: 0 | CV14: 0 | CW14: 0 | CX14: 0 | CY14: 0 | CZ14: 0 | DA14: 0 | DB14: 0 | DC14: 0 | DD14: =IF($AD$90,DD10,$AO$6) -> 0 | DE14: 0 | DF14: 0 | DG14: 0 | DH14: 0 | DI14: 0 | DJ14: 0 | DK14: 0 | DL14: 0 | DM14: 0 | DN14: 0 | DO14: 0 | DP14: 0 | DQ14: 0 | DR14: 0
C15: Base length, B = | D15: 150 | E15: =FIXED(AA28,0)&"-"&FIXED(AB28,0) -> 115-161 | X15: No | Z15: qs | AA15: =AA14 -> 75 | AB15: =AB14-2.5*F75 -> 26.33612963 | AE15: =IF(E12="yes",(AC11+AC12)/2,AA2) -> 75 | AF15: =IF(E12="yes",AD11,AB2) -> 50 | AI15: =AI14 -> 150 | AJ15: =AJ13 -> 300 | AN15: y | AO15: =IF($AD$90,AO11,$AO$7) -> 280 | AP15: =IF($AD$90,AP11,$AO$7) -> 270 | AQ15: =IF($AD$90,AQ11,$AO$7) -> 225 | AR15: =IF($AD$90,AR11,$AO$7) -> 180 | AS15: 135 | AT15: 90 | AU15: 90 | AV15: 90 | AW15: 90 | AX15: 90 | AY15: 90 | AZ15: 90 | BA15: 90 | BB15: 90 | BC15: 90 | BD15: 90 | BE15: 90 | BF15: 90 | BG15: 90 | BH15: 90 | BI15: 90 | BJ15: 90 | BK15: 90 | BL15: 90 | BM15: 90 | BN15: 90 | BO15: 90 | BP15: 90 | BQ15: 90 | BR15: 90 | BS15: 90 | BT15: 90 | BU15: 90 | BV15: 90 | BW15: 90 | BX15: 90 | BY15: 90 | BZ15: 90 | CA15: 90 | CB15: 90 | CC15: 90 | CD15: 90 | CE15: 0 | CF15: 0 | CG15: 0 | CH15: 0 | CI15: 0 | CJ15: 0 | CK15: 0 | CL15: 0 | CM15: 0 | CN15: 0 | CO15: 0 | CP15: 0 | CQ15: 0 | CR15: 0 | CS15: 0 | CT15: 0 | CU15: 0 | CV15: 0 | CW15: 0 | CX15: 0 | CY15: 0 | CZ15: 0 | DA15: 0 | DB15: 0 | DC15: 0 | DD15: =IF($AD$90,DD11,$AO$7) -> 0 | DE15: 0 | DF15: 0 | DG15: 0 | DH15: 0 | DI15: 0 | DJ15: 0 | DK15: 0 | DL15: 0 | DM15: 0 | DN15: 0 | DO15: 0 | DP15: 0 | DQ15: 0 | DR15: 0
C16: Base thk., tb = | D16: 30 | E16: =FIXED(AB29,0) -> 23 | Z16: qs | AA16: =IF(AND(AG52>=AH52,AG52<=AI52),D15,300*AG52)+AA2 -> 225 | AB16: =AB14-2.5*F76 -> 48.96387037 | AE16: =IF(E12="yes",AE15+20,AA2) -> 75 | AF16: =IF(E12="yes",AF15+22,AB2) -> 50 | AI16: =$AI$8+($AI$22-$AI$8)/5*3 -> 175 | AJ16: =AJ15+($AJ$23-$AJ$8)/5 -> 300 | AM16: Footing Top | AN16: x | AO16: =AA3+cover -> 80 | AP16: =AA8-cover -> 220
C17: Toe length, bt = | D17: 0 | E17: =FIXED(AA30,0)&"-"&FIXED(AB30,0) -> 23-50 | Z17: qs | AA17: =AA16 -> 225 | AB17: =AB14 -> 50 | AE17: =IF(E12="yes",AE15-10,AA2) -> 75 | AF17: =IF(E12="yes",AF15+20,AB2) -> 50 | AI17: =AI16 -> 175 | AJ17: =AJ16-AJ15+AJ14 -> 280 | AN17: y | AO17: =AB3-cover -> 75 | AP17: =AO17 -> 75
C18: Heel length, bh = | D18: =D15-D17-D14 -> 125 | AE18: =AE15 -> 75 | AF18: =AF15 -> 50 | AI18: =AI17 -> 175 | AJ18: =AJ16 -> 300 | AM18: Footing Bot | AN18: x | AO18: =AO16 -> 80 | AP18: =AP16 -> 220 | AR18: =(AO20+AP20)/2 -> 99.375
C19: Soil Cover @Toe, hs = | D19: 0 | V19: =300 -> 300 | AI19: =$AI$8+($AI$22-$AI$8)/5*4 -> 200 | AJ19: =AJ18+($AJ$23-$AJ$8)/5 -> 300 | AN19: y | AO19: =AB2+cover -> 55 | AP19: =AO19 -> 55
C20: Backfill Slope , b1 = | D20: 0 | E20: deg. | V20: 74 | AC20: =AA2 -> 75 | AD20: =AB3+D19 -> 80 | AI20: =AI19 -> 200 | AJ20: =AJ19-AJ18+AJ17 -> 280 | AL20: =(D15-2*cover-5)/CEILING((D15-2*cover-5)/(100*AI127),1) -> 33.75 | AM20: Footing dot | AN20: x | AO20: =AO16+2.5 -> 82.5 | AP20: =MIN($AP$16-2.5,AO20+$AL$20) -> 116.25 | AQ20: =MIN($AP$16-2.5,AP20+$AL$20) -> 150 | AR20: =MIN($AP$16-2.5,AQ20+$AL$20) -> 183.75 | AS20: 217.5 | AT20: 217.5 | AU20: 217.5 | AV20: 217.5 | AW20: 217.5 | AX20: 217.5 | AY20: 217.5 | AZ20: 217.5 | BA20: 217.5 | BB20: 217.5 | BC20: 217.5 | BD20: 217.5 | BE20: 217.5 | BF20: 217.5 | BG20: 217.5 | BH20: 217.5 | BI20: 217.5 | BJ20: 217.5 | BK20: 217.5 | BL20: 217.5 | BM20: 217.5 | BN20: 217.5 | BO20: 217.5 | BP20: 217.5 | BQ20: 217.5 | BR20: 217.5 | BS20: 217.5 | BT20: 217.5 | BU20: 217.5 | BV20: 217.5 | BW20: 217.5 | BX20: 217.5 | BY20: 217.5 | BZ20: 217.5 | CA20: 217.5 | CB20: 217.5 | CC20: 217.5 | CD20: 217.5
C21: Cover Stem = | D21: 5 | V21: =V19-V20 -> 226 | AA21: =MAX(AB2:AB18)-MIN(AB2:AB18) -> 260 | AB21: =MAX(AA2:AA18) -> 225 | AC21: =AA4+D19/(D11-D16)*(D14-D13) -> 75 | AD21: =AD20 -> 80 | AI21: =AI20 -> 200 | AJ21: =AJ19 -> 300 | AM21: top | AN21: y | AO21: =AO17-2.5 -> 72.5 | AP21: =AO21 -> 72.5 | AQ21: =AP21 -> 72.5 | AR21: 72.5 | AS21: 72.5 | AT21: 72.5 | AU21: 72.5 | AV21: 72.5 | AW21: 72.5 | AX21: 72.5 | AY21: 72.5 | AZ21: 72.5 | BA21: 72.5 | BB21: 72.5 | BC21: 72.5 | BD21: 72.5 | BE21: 72.5 | BF21: 72.5 | BG21: 72.5 | BH21: 72.5 | BI21: 72.5 | BJ21: 72.5 | BK21: 72.5 | BL21: 72.5 | BM21: 72.5 | BN21: 72.5 | BO21: 72.5 | BP21: 72.5 | BQ21: 72.5 | BR21: 72.5 | BS21: 72.5 | BT21: 72.5 | BU21: 72.5 | BV21: 72.5 | BW21: 72.5 | BX21: 72.5 | BY21: 72.5 | BZ21: 72.5 | CA21: 72.5 | CB21: 72.5 | CC21: 72.5 | CD21: 72.5
C22: Cover Base = | D22: 5 | V22: 3 | AG22: =(AB5+AB4)/2 -> 180 | AI22: =AC7 -> 225 | AJ22: =AJ21+($AJ$23-$AJ$8)/5 -> 300 | AM22: bot | AN22: y | AO22: =AO19+2.5 -> 57.5 | AP22: =AO22 -> 57.5 | AQ22: =AP22 -> 57.5 | AR22: 57.5 | AS22: 57.5 | AT22: 57.5 | AU22: 57.5 | AV22: 57.5 | AW22: 57.5 | AX22: 57.5 | AY22: 57.5 | AZ22: 57.5 | BA22: 57.5 | BB22: 57.5 | BC22: 57.5 | BD22: 57.5 | BE22: 57.5 | BF22: 57.5 | BG22: 57.5 | BH22: 57.5 | BI22: 57.5 | BJ22: 57.5 | BK22: 57.5 | BL22: 57.5 | BM22: 57.5 | BN22: 57.5 | BO22: 57.5 | BP22: 57.5 | BQ22: 57.5 | BR22: 57.5 | BS22: 57.5 | BT22: 57.5 | BU22: 57.5 | BV22: 57.5 | BW22: 57.5 | BX22: 57.5 | BY22: 57.5 | BZ22: 57.5 | CA22: 57.5 | CB22: 57.5 | CC22: 57.5 | CD22: 57.5
C23: Loading | V23: =V21/V22 -> 75.33333333 | AI23: =AI22 -> 225 | AJ23: =AD7 -> 280 | AN23: =AA6 -> 100 | AO23: =IF(AO20<=$AN$23,$CD$20,AO20)-$AN$23 -> 117.5 | AP23: 16.25 | AQ23: 50 | AR23: 83.75 | AS23: 117.5 | AT23: 117.5 | AU23: 117.5 | AV23: 117.5 | AW23: 117.5 | AX23: 117.5 | AY23: =IF(AY20<=$AN$23,$CD$20,AY20)-$AN$23 -> 117.5 | AZ23: 117.5 | BA23: 117.5 | BB23: 117.5 | BC23: 117.5 | BD23: 117.5 | BE23: 117.5 | BF23: 117.5 | BG23: 117.5 | BH23: 117.5 | BI23: 117.5 | BJ23: 117.5 | BK23: 117.5 | BL23: 117.5 | BM23: 117.5 | BN23: 117.5 | BO23: 117.5 | BP23: 117.5 | BQ23: 117.5 | BR23: 117.5 | BS23: 117.5 | BT23: 117.5 | BU23: 117.5 | BV23: 117.5 | BW23: 117.5 | BX23: 117.5 | BY23: 117.5 | BZ23: 117.5 | CA23: 117.5 | CB23: 117.5 | CC23: 117.5 | CD23: 117.5 | CE23: =MIN(AO23:CD23) -> 16.25
C24: Surcharge, qs = | D24: 0.5 | E24: T/m2 | V24: =V20+V23 -> 149.3333333 | AM24: Footing dot Name | AN24: x | AO24: =AA6+CE23 -> 116.25 | AP24: =AO24 -> 116.25 | AQ24: =AP24 -> 116.25 | AR24: =AQ24+15 -> 131.25
V25: =100*(V24-AQ25) -> 11433.33333 | AF25: Height fir stability, Hs= | AG25: =(D11+D18*TAN(RADIANS(Slope)))/100 -> 2.3 | AM25: top | AN25: y | AO25: =AO21-2 -> 70.5 | AP25: =AO22-2 -> 55.5 | AQ25: =AB2-15 -> 35 | AR25: =AQ25 -> 35
C26: Soil Properties | F26: Ka, Kp Options : | G26: Rankine | Z26: Hint | AF26: Active pressure pa = ka g = | AG26: =G27*D27 -> 0.6166666667 | AH26: T/m2/m | AI26: Pa | AK26: ="Rh ="&FIXED(AG46,2) -> Rh =2.01
C27: Moist Density, gs = | D27: 1.85 | E27: T/m³ | F27: Ka = | G27: =IF($G$26="Rankine",AA36,Y36) -> 0.3333333333 | Z27: Stem thk. ,ts = | AA27: =(D11-D16)/10 -> 20 | AB27: =(D11-D16)/12 -> 16.66666667 | AF27: For stability analysis | AI27: =AA8 -> 225 | AJ27: =AI27 -> 225 | AK27: =AI30 -> 149.9224022 | AL27: =AK36 -> 162.9817739 | AO27: ELEVATION | AQ27: ="Ø "&I98&$AG$86 -> Ø 12 @ 0.200 m. | AS27: ="Ø "&I100&$AJ$91 -> Ø 12 @ 0.425 m.
C28: Sat. Density, gsat = | D28: 2 | E28: T/m³ | F28: Kp = | G28: =IF($G$26="Rankine",AB36,Z36) -> 3 | Z28: Base length, B = | AA28: =0.5*D11 -> 115 | AB28: =0.7*D11 -> 161 | AF28: Active force Pa = ka g Hs2/2 = | AG28: =G27*D27*AG25^2/2 -> 1.631083333 | AH28: T/m | AI28: =AB8 -> 80 | AJ28: =AD7 -> 280 | AK28: =100*AG47+AB2 -> 133.9613067 | AL28: =AK28 -> 133.9613067 | AM28: Outline | AN28: x | AO28: =AA9+MIN(60,D11/4) -> 282.5 | AP28: =AO28 -> 282.5 | AQ28: =AP28 -> 282.5 | AR28: =AQ28 -> 282.5 | AS28: =AR28+200 -> 482.5 | AT28: =AS28 -> 482.5 | AU28: =AT28 -> 482.5 | AV28: =AU28 -> 482.5 | AW28: =AO28 -> 282.5 | AX28: =AO28 -> 282.5 | AY28: =AS28 -> 482.5 | BA28: Cutoff from Base | BB28: =CEILING((1-SQRT(2)/2)*(D11-D16)+4*I98,5) -> 110 | BC28: =FIXED(BB28/100,2) -> 1.10 | BE28: CutOff Dim Line | BF28: =AS28+15 -> 497.5 | BG28: =BF28 -> 497.5 | BI28: =BF28-10 -> 487.5 | BJ28: =BF28+5 -> 502.5 | BL28: =BI28 -> 487.5 | BM28: =BJ28 -> 502.5 | BO28: CutOff Dim Name | BP28: =BF28 -> 497.5
C29: Friction Angle (Ø) = | D29: 30 | E29: deg. | Z29: Base thk., tb = | AA29: =D11/12 -> 19.16666667 | AB29: =D11/10 -> 23 | AF29: Pah = Pa cos B = | AG29: =$AG$28*COS(RADIANS(Slope)) -> 1.631083333 | AH29: T/m | AI29: ="Rv = "&FIXED(AK50,2) -> Rv = 7.41 | AN29: y | AO29: =AP29-5 -> 45 | AP29: =AB9 -> 50 | AQ29: =AB5+5 -> 285 | AR29: =AB5 -> 280 | AS29: =AR29 -> 280 | AT29: =AQ29 -> 285 | AU29: =AO29 -> 45 | AV29: =AP29 -> 50 | AW29: =AV29 -> 50 | AX29: =AB3 -> 80 | AY29: =AX29 -> 80 | BA29: Cutoff from top | BB29: =(D11-D16)-BB28 -> 90 | BF29: =AY29-5 -> 75 | BG29: =BA31+5 -> 280 | BI29: =BA31 -> 275 | BJ29: =BI29 -> 275 | BL29: =AY29 -> 80 | BM29: =BL29 -> 80 | BP29: =(BF29+BG29)/2 -> 177.5
C30: Soil bearing , q all = | D30: 12 | E30: T/m2 | Z30: Toe length, bt = | AA30: =AB29 -> 23 | AB30: =D15/3 -> 50 | AF30: Pav = Pa sin B = | AG30: =$AG$28*SIN(RADIANS(Slope)) -> 0 | AI30: =100*AG48+AA2 -> 149.9224022 | AJ30: =AI30 -> 149.9224022 | AM30: Steel | AN30: x | AO30: =(AS28+AO28)/2 -> 382.5 | AP30: =AO30 -> 382.5 | AQ30: =AP30+10 -> 392.5 | AS30: =AO28+(AS28-AO28)/6 -> 315.8333333 | AT30: =AS30 -> 315.8333333 | AU30: =AT30+10 -> 325.8333333 | AW30: =AO28+5*(AS28-AO28)/6 -> 449.1666667 | AX30: =AW30 -> 449.1666667 | AY30: =AX30+10 -> 459.1666667 | BA30: =AO28+(AS28-AO28)/3 -> 349.1666667 | BB30: =BA30 -> 349.1666667 | BC30: =BB30+10 -> 359.1666667 | BE30: =AO28+2*(AS28-AO28)/3 -> 415.8333333 | BF30: =BE30 -> 415.8333333 | BG30: =BF30+10 -> 425.8333333
C31: Friction μs = | D31: 0.6 | AF31: Water force Pw = | AG31: (ka*(gs-gw-g)+gw)*Water^2/2 | AI31: =AK28 -> 133.9613067 | AJ31: =AK37 -> 182 | AN31: y | AO31: =AO5 -> 275 | AP31: =AQ5 -> 62.5 | AQ31: =AP31 -> 62.5 | AS31: =AO31 -> 275 | AT31: =AP31 -> 62.5 | AU31: =AT31 -> 62.5 | AW31: =AS31 -> 275 | AX31: =AT31 -> 62.5 | AY31: =AX31 -> 62.5 | BA31: =AW31 -> 275 | BB31: =AX31 -> 62.5 | BC31: =BB31 -> 62.5 | BE31: =BA31 -> 275 | BF31: =BB31 -> 62.5 | BG31: =BF31 -> 62.5
C32: Resisting | AA32: =D11 -> 230 | AB32: =AA32 -> 230 | AG32: =IF(D12<=0,0,(G27*(D28-1-D27)+1)*(D12/100)^2/2) -> 0 | AH32: T/m | AI32: CL | AM32: Steel position | AN32: x | AO32: =(AA6+AO28)/2 -> 191.25 | AP32: =AP4 -> 95 | AQ32: =(AA6+AO28)/2 -> 191.25 | AR32: =AS30 -> 315.8333333 | AT32: =AP32 -> 95 | AU32: =(AP32+AQ32)/2 -> 143.125 | AW32: =(FLOOR((AA8-AA7)/AL20/2,1)+0.5)*AL20+AO24 -> 166.875 | AX32: =AW32 -> 166.875 | AY32: =AX32+15 -> 181.875 | AZ32: =(AO20+AP20)/2 -> 99.375 | BA32: =AZ32 -> 99.375 | BB32: =BA32+15 -> 114.375
D33: Force | E33: Lever arm | F33: Moment about toe | AA33: =0.4*AA32 -> 92 | AB33: =0.7*AB32 -> 161 | AF33: For stem design | AI33: =(AA2+AA8)/2 -> 150 | AJ33: =AI33 -> 150 | AN33: y | AO33: =AP7 -> 230.5 | AP33: =AQ33-AL7/2 -> 209.25 | AQ33: =AP7 -> 230.5 | AR33: =AP33 -> 209.25 | AT33: =AS7 -> 103 | AU33: =AT33+AL7/4 -> 113.625 | AW33: =AO17 -> 75 | AX33: =AB3+20 -> 100 | AY33: =AX33 -> 100 | AZ33: =AO19 -> 55 | BA33: =AB2-30 -> 20 | BB33: =BA33 -> 20
D34: W, (T/m) | E34: L, (m) | F34: (T-m/m) | J34: Wall Geometry | AF34: Active force Pa = ka g Hstem2/2 = | AG34: =G27*D27*((D11-D16)/100)^2/2 -> 1.233333333 | AI34: =AB2-5 -> 45 | AJ34: =0.8*AB5 -> 224
C35: Stem Wall | D35: =AK41 -> 1.08 | E35: =AL41 -> 0.137037037 | F35: =D35*E35 -> 0.148 | Y35: CKa | Z35: CKp | AA35: RKa | AB35: RKp | AF35: Pah = Pa cos B = | AG35: =$AG$34*COS(RADIANS(Slope)) -> 1.233333333 | AH35: T/m | AI35: R | AO35: =D11/4 -> 57.5
C36: Footing Weight | D36: =AK42 -> 1.08 | E36: =AL42 -> 0.75 | F36: =D36*E36 -> 0.81 | Y36: =COS(RADIANS(s_phi))^2/(COS(RADIANS(s_phi/2))*(1+SQRT(SIN(RADIANS(s_phi+s_phi/2))*SIN(RADIANS(s_phi-Slope))/(COS(RADIANS(s_phi/2))*COS(RADIANS(-Slope)))))^2) -> 0.3014166448 | Z36: =COS(RADIANS(s_phi))^2/(COS(RADIANS(s_phi/2))*(1-SQRT(SIN(RADIANS(s_phi+s_phi/2))*SIN(RADIANS(s_phi+Slope))/(COS(RADIANS(s_phi/2))*COS(RADIANS(Slope)))))^2) -> 4.976500223 | AA36: =COS(RADIANS(Slope))*(COS(RADIANS(Slope))-SQRT(COS(RADIANS(Slope))^2-COS(RADIANS(s_phi))^2))/(COS(RADIANS(Slope))+SQRT(COS(RADIANS(Slope))^2-COS(RADIANS(s_phi))^2)) -> 0.3333333333 | AB36: =COS(RADIANS(Slope))*(COS(RADIANS(Slope))+SQRT(COS(RADIANS(Slope))^2-COS(RADIANS(s_phi))^2))/(COS(RADIANS(Slope))-SQRT(COS(RADIANS(Slope))^2-COS(RADIANS(s_phi))^2)) -> 3 | AF36: Pav = Pa sin B = | AG36: =$AG$34*SIN(RADIANS(Slope)) -> 0 | AH36: T/m | AI36: =AA2+100*AG52 -> 127.0974284 | AJ36: =AI30 -> 149.9224022 | AK36: =AJ36+(AK37-AJ37)*AI38 -> 162.9817739 | AM36: =(AA8-AA7)/AL20/2 -> 1.851851852 | AN36: =(FLOOR((AA8-AA7)/AL20/2,1)+0.5)*AL20+AO24 -> 166.875
C37: Soil Cover @ Toe | D37: 0 | E37: 0 | F37: 0 | AF37: Water force Pw = | AG37: (ka*(gs-gw-g)+gw)*(Water-tb)^2/2 | AI37: =AB2 -> 50 | AJ37: =AI31 -> 133.9613067 | AK37: =0.65*AB5 -> 182 | AM37: =FLOOR(AM36,1) -> 1 | AN37: =FLOOR(AN36,1) -> 166 | AX37: @ Cutoff | AY37: t = | AZ37: =D13+BB29/(D11-D16)*(D14-D13) -> 22.25 | BA37: d= | BB37: =AZ37-cover-I98/20 -> 16.65
C38: Backfill Weight | D38: 4.625 | E38: 0.875 | F38: 4.046875 | AG38: =(G27*(D28-1-D27)+1)*(MAX(0,(D12-D16))/100)^2/2 -> 0 | AH38: T/m | AI38: =(AJ36-AI36)/(AJ37-AI37) -> 0.2718511021 | AQ38: USEAGE | AY38: ="As min.= "&IF($D$7=4000,BB38,IF($D$7=3000,BB39,BB40)) -> As min.= 0.0018·b·d = | AZ38: =IF($D$7=4000,BC38,IF($D$7=3000,BC39,BC40))*100*BB37 -> 2.997 | BA38: cm2/m | BB38: 0.0018·b·d = | BC38: 0.0018 | BD38: 0.0018
C39: Backfill Slope | D39: 0 | E39: 1.083333333 | F39: 0 | AF39: Overturning Forces | AK39: Resisting | AQ39: overturning | AR39: =L48 -> 0.609296368 | AS39: =IF(AR39>1,1,0) -> 0 | AT39: =IF(AS39=0,"",AQ39) ->  | AU39: 0.9135308518 | AY39: As min.= 14/fy bd = | AZ39: =14/$D$7*100*BB37 -> 5.8275 | BA39: cm2/m | BB39: 0.0020·b·d = | BC39: 0.002 | BD39: 0.002
C40: Water Weight | D40: 0 | E40: 0.875 | F40: 0 | AG40: Force, T/m | AH40: Arm, m | AI40: Moment, T-m/m | AK40: Force, T/m | AL40: Arm, m | AM40: Moment, T-m/m | AQ40: sliding | AR40: =L67 -> 0.6434808071 | AS40: 0 | AU40: 0.430793774 | AY40: As min.= | AZ40: =MIN(MAX(AZ38:AZ39),1.34*AG78/2) -> 2.709600781 | BA40: cm2/m | BB40: 0.0025·b·d = | BC40: 0.0025 | BD40: 0.0025
C41: Backfill Pav | D41: 0 | E41: 1.5 | F41: 0 | AF41: Backfill = | AG41: =AG29 -> 1.631083333 | AH41: =AG25/3 -> 0.7666666667 | AI41: =AG41*AH41 -> 1.250497222 | AJ41: Stem Wall | AK41: =2.4*0.5*(D13+D14)/100*(D11-D16)/100 -> 1.08 | AL41: =(D17+(2*D13*D14-D13^2+2*D14^2)/(3*(D13+D14)))/100 -> 0.137037037 | AM41: =AK41*AL41 -> 0.148 | AQ41: bearing | AR41: =F78 -> 0.788795679 | AS41: 0 | AU41: 0.5909657283 | BB41: 0.0025
C42: Surcharge Vertical | D42: =AK48 -> 0.625 | E42: 0.875 | F42: 0.546875 | AF42: Water Table = | AG42: =AG32 -> 0 | AH42: =D12/100/3 -> 0 | AI42: =AG42*AH42 -> 0 | AJ42: Base | AK42: =2.4*(D15*D16)/10000 -> 1.08 | AL42: =D15/100/2 -> 0.75 | AM42: 0.81
C43: Water Buoyancy | D43: =AK49 -> 0 | E43: 0.75 | F43: 0 | AF43: Surcharge = | AG43: =G27*D24*AG25 -> 0.3833333333 | AH43: =AG25/2 -> 1.15 | AI43: =AG43*AH43 -> 0.4408333333 | AJ43: Soil Cover @Toe | AK43: =(D17*D19)*D27/10000 -> 0 | AL43: =D17/200 -> 0 | AM43: 0
C44: Rv = | D44: =SUM(D35:D43) -> 7.41 | E44: RM = | F44: =SUM(F35:F43) -> 5.55175 | K44: Arm of Hor. Resultant = OTM / Rh = | L44: =AG47 -> 0.8396130669 | AJ44: Backfill W | AK44: =D18*(D11-D16)*D27/10000 -> 4.625 | AL44: =(D15-D18/2)/100 -> 0.875 | AM44: 4.046875
K45: Arm of Ver. Resultant = RM / Rv = | L45: =AG48 -> 0.7492240216 | AF45: Passive = | AG45: 0 | AH45: =(D16+D19)/3/100 -> 0.1 | AI45: =AG45*AH45 -> 0 | AJ45: Backfill Slope W | AK45: =0.5*D18*D18*TAN(RADIANS(Slope))*D27/10000 -> 0 | AL45: =(D15-D18/3)/100 -> 1.083333333 | AM45: 0
C46: Overturning about toe (T-m.) | K46: Overturning Ratio = RM / OTM = | L46: =AG49 -> 3.282474843 | AF46: Sum Rh | AG46: =SUM(AG41:AG45) -> 2.014416667 | AI46: =SUM(AI41:AI45) -> 1.691330556 | AJ46: Water W | AK46: =D18*MAX((D12-D16),0)*(D28-D27)/10000 -> 0 | AL46: =AL44 -> 0.875 | AM46: 0
D47: Force | E47: Lever arm | F47: Moment about toe | L47: =IF(L46>=2,">= 2.0 OK","<2.0 N.G") -> >= 2.0 OK | AF47: Arm of Horizont Resultant = | AG47: =AI46/AG46 -> 0.8396130669 | AH47: m | AJ47: Pav | AK47: =AG30 -> 0 | AL47: =D15/100 -> 1.5 | AM47: 0
D48: W, (T/m) | E48: L, (m) | F48: (T-m/m) | L48: =2/L46 -> 0.609296368 | AF48: Arm of Vertical Resultant = | AG48: =AM50/AK50 -> 0.7492240216 | AH48: m | AJ48: Surcharge Ver = | AK48: =D18*D24/100 -> 0.625 | AL48: =(D15-D18/2)/100 -> 0.875 | AM48: 0.546875
C49: Backfill | D49: =AG41 -> 1.631083333 | E49: =AH41 -> 0.7666666667 | F49: =D49*E49 -> 1.250497222 | AF49: Overturning Ratio = | AG49: =AM50/AI46 -> 3.282474843 | AH49: =IF(AG49>=2,"> 2.0 OK","<2.0 N.G") -> > 2.0 OK | AJ49: Water Buoyancy | AK49: =-D12*D15/10000 -> 0 | AL49: =D15/200 -> 0.75 | AM49: 0
C50: Water | D50: =AG42 -> 0 | E50: =AH42 -> 0 | F50: =D50*E50 -> 0 | AJ50: Rv = | AK50: =SUM(AK41:AK49) -> 7.41 | AL50: RM = | AM50: =SUM(AM41:AM49) -> 5.55175
C51: Surcharge | D51: =AG43 -> 0.3833333333 | E51: 1.15 | F51: 0.4408333333 | AF51: Soil Bearing Pressure | AI51: l/3 | AJ51: 2l/3
C52: Passive | D52: =AG45 -> 0 | E52: =AH45 -> 0.1 | F52: 0 | AF52: Resultant from toe, a = | AG52: =(AM50-AI46)/AK50 -> 0.520974284 | AH52: =D15/100/3 -> 0.5 | AI52: =2*AH52 -> 1 | AJ52: ∑R = | AK52: =SQRT(AK50^2+AG46^2) -> 7.678930558
C53: Rh = | D53: =SUM(D49:D52) -> 2.014416667 | E53: OTM = | F53: =SUM(F49:F52) -> 1.691330556 | AF53: Eccentric = | AG53: =D15/200-(AM50-AI46)/AK50 -> 0.229025716 | AH53: m | AI53: =IF(AND(AG52>AH52,AG52<AI52),"Case (a)",IF(OR(AG52=AH52,AG52=AI52),"Case (b)","Case (c)")) -> Case (a)
AF54: Bearing length = | AG54: =MIN(D15/100,3*(D15/200-AG53)) -> 1.5 | AH54: m
C55: Rankine Theory | H55: The Coulomb Theory | AF55: Toe bearing = | AG55: =AK50/(D15/100)+6*AK50*AG53/(D15/100)^2 -> 9.465548148 | AH55: T/m2 | AI55: =IF(MAX(AG55:AG56)<=D30,"< "&FIXED(D30,1)&" T/m OK.","> "&FIXED(D30,1)&" T/m NG.") -> < 12.0 T/m OK.
AF56: Heel bearing = | AG56: =AK50/(D15/100)-6*AK50*AG53/(D15/100)^2 -> 0.4144518519 | AH56: T/m2
AF57: Heel bearing = | AG57: =MAX(AG56,0) -> 0.4144518519 | AH57: T/m2
AF58: Sliding
AF59: Friction μs = | AG59: =D31 -> 0.6
AF60: Friction Force = | AG60: =D31*D44 -> 4.446
AF61: Passive Depth = | AG61: =(D19+D16)/100 -> 0.3
AF62: Passive pressure top = | AG62: 0 | AH62: T/m2
AF63: Passive pressure bot = | AG63: =G28*D27*AG61 -> 1.665 | AH63: T/m2 | AI63: =0.5*(AG62+AG63)*AG61 -> 0.24975
C64: Sliding (T.) | AF64: Passive pressure Force = | AG64: =0.5*(AG62+AG63)*AG61 -> 0.24975 | AH64: T/m | AI64: =0.5*AG63*AG61 -> 0.24975
E65: Friction μs = | F65: =D31 -> 0.6 | G65: T/m | K65: Sliding Safety Factor = Resisting / Sliding = | L65: =F68/F69 -> 2.331071857 | AF65: Sliding Ratio(Pp+Friction) /Rh = | AG65: =(AG64+AG60)/AG46 -> 2.331071857 | AH65: T/m | AI65: =IF(AG65>=1.5,"> 1.50 OK.","< 1.50 NG.") -> > 1.50 OK.
E66: Friction Force, μs x Rv = | F66: =D31*D44 -> 4.446 | G66: T/m | L66: =IF(L65>=1.5,"> 1.5 OK","<1.5 N.G") -> > 1.5 OK
E67: Passive pres. Force = | F67: =AG64 -> 0.24975 | G67: T/m2 | L67: =1.5/L65 -> 0.6434808071 | AF67: Wall Stem Design
E68: Horiz. Resisting Force = | F68: =F66+F67 -> 4.69575 | G68: T/m | AG68: Force, T/m | AH68: Arm, m | AI68: Moment, T-m/m
E69: Horiz. Sliding Force = | F69: =D53 -> 2.014416667 | G69: T/m | AF69: Backfill = Pah = | AG69: =AG35 -> 1.233333333 | AH69: =(D11-D16)/100/3 -> 0.6666666667 | AI69: =AG69*AH69 -> 0.8222222222
AF70: Water table = | AG70: =AG38 -> 0 | AH70: =MAX(0,(D12-D16))/100/3 -> 0 | AI70: =AG70*AH70 -> 0
C71: Bearing (T/m2.) | AF71: Surcharge = | AG71: =G27*D24*(D11-D16)/100 -> 0.3333333333 | AH71: =(D11-D16)/100/2 -> 1 | AI71: =AG71*AH71 -> 0.3333333333
E72: Rv = | F72: =D44 -> 7.41 | G72: Ton. | AA72: 14/fy bd | AF72: Max shear = | AG72: =SUM(AG69:AG71) -> 1.566666667 | AI72: =SUM(AI69:AI71) -> 1.155555556
E73: Resultant from toe, a = | F73: =AG52 -> 0.520974284 | G73: m. | AA73: 14 | AF73: d = | AG73: =D14-cover-I98/20 -> 19.4 | AH73: cm
E74: Eccentricity = | F74: =AG53 -> 0.229025716 | G74: m. | AA74: 4000 | AF74: Shear at critacal section = | AG74: =(D11-D16-AG73)/(D11-D16)*AG72 -> 1.4147
E75: Toe Bearing q1 = | F75: =AG55 -> 9.465548148 | G75: T/m² | AA75: =AA73/AA74 -> 0.0035 | AF75: Max Moment = | AG75: =AI72 -> 1.155555556
E76: Heel Bearing q2 = | F76: =AG57 -> 0.4144518519 | G76: T/m² | AA76: =AA75*100*42 -> 14.7 | AF76: Vc = 0.29*√f'c*bd = | AG76: =0.29*SQRT('Design criteria'!$G$17)*100*AG73/1000 -> 10.52528223 | AH76: T | AI76: =IF(AG76>=AG74," OK"," N.G") -> OK | AJ76: 4000
E77: Soil bearing , q all = | F77: =D30 -> 12 | G77: T/m² | AF77: Mr = Rbd² = | AG77: =$K$8*100*AG73^2/100/1000 -> 10.29314961 | AH77: T-m | AI77: =IF(AG77>=AG75," OK"," N.G") -> OK | AJ77: 0.0018
C78: =AI53 -> Case (a) | E78: q max / q all = | F78: =MAX(F75:F76)/D30 -> 0.788795679 | G78: =IF(F78<=1," OK"," N.G") -> OK | AA78: 1.33 as req | AF78: Ast Req = M/(fs j d) = | AG78: =100000*AI72/('Design criteria'!$G$27*MAIN!$H$8*AG73) -> 4.044180271 | AH78: cm2/m | AI78: =AG78*1.34 -> 5.419201563 | AJ78: =AJ76*AJ77 -> 7.2
AA79: 1.33 | AD79: =IF(AND(I98<=16,D7=4000),0.0012,0.0015) -> 0.0012 | AF79: ="As min.= "&AD79&"b.t" -> As min.= 0.0012b.t | AG79: =AD79*100*D14 -> 3 | AH79: cm2/m | AI79: 0.0018·b·t = | AJ79: 0.0018
AA80: 7.8 | AF80: As min.= 14/fy bd = | AG80: =14/$D$7*100*AG73 -> 6.79 | AH80: cm2/m | AI80: 0.0020·b·t = | AJ80: 0.002
AA81: =AA79*AA80 -> 10.374 | AF81: As min1.= | AG81: =MIN(MAX(AG79:AG80),1.34*AG78) -> 5.419201563 | AH81: cm2/m | AI81: 0.0025·b·t = | AJ81: 0.0025
AA82: 12.2 | AF82: Use Ø vertical = | AG82: =I98 -> 12 | AH82: mm | AJ82: =MIN(2.29*SQRT($D$8)/(AG82/10),25) -> 25 | AK82: =1000*AG72/(AI85*H8*AG73) -> 4.944978921 | AL82: =IF(AK82<=AJ82,"OK","NG") -> OK
AA83: =AA82/AA79 -> 9.172932331 | AF83: As1 | AG83: =3.14159*$AG$82^2/400 -> 1.1309724
AF84: As req = | AG84: =MAX(AG78,AG81) -> 5.419201563 | AI84: ∑O = Lo/@ | AJ84: Ld at footing = Base thk - cover | AK84: Hook 12Db | AL84: Ld = db fs/(4u)
AA85: =PI()/4 -> 0.7853981634 | AF85: @ Min(3t,45,As min) = | AG85: =MIN(AG83/AG84,3*D14/100,0.45) -> 0.2086972383 | AH85: =FLOOR(1.025*$AG85,0.025) -> 0.2 | AI85: =3.14159*AG82/10/AH85 -> 18.84954 | AJ85: =D16-cover -> 25 | AK85: =12*AG82/10 -> 14.4 | AL85: =AG82/10*'Design criteria'!G27/(4*AJ82) -> 20.4 | AM85: =IF(AL85<(AJ85+AK85),"OK","NG") -> OK
AA86: =2*AA85 -> 1.570796327 | AE86: Ver | AF86: Use | AG86: =" @ "&FIXED(FLOOR(1.025*$AG$85,0.025),3)&" m." -> @ 0.200 m. | AH86: =AG83/AH85 -> 5.654862
AF87: Use Ø Transv. = | AG87: =I100 -> 12 | AH87: mm
Y88: d | Z88: 0.5 | AA88: =PI()*Z88^2/4 -> 0.1963495408 | AE88: Transv. | AF88: As1 | AG88: =3.14159*$AG87^2/400 -> 1.1309724
C89: Wall Stem Design | J89: d = | K89: =AG73 -> 19.4 | L89: cm | AA89: =12/15 -> 0.8 | AD89: =IF(AND(I100<=16,D7=4000),0.002,0.0025) -> 0.002 | AF89: ="As min.= "&AD89&"b.t" -> As min.= 0.002b.t | AG89: =AD89*100*(D13+D14)/2 -> 4.5 | AH89: cm2/m | AI89: @
D90: Force | E90: Lever arm | F90: Moment | J90: Shear at critacal section, V = | K90: =AG74 -> 1.4147 | L90: T/m | AA90: =AA88*AA89 -> 0.1570796327 | AD90: TRUE | AF90: As min2 FrontSide = | AG90: =AD90*0.4*AG89 -> 1.8 | AH90: =MIN($AG88/($AG90+0.01),3*$D$14/100,0.45) -> 0.45 | AI90: =FLOOR(1.025*$AH$90,0.025) -> 0.45 | AJ90: =" @"&FIXED(AI90,3)&" m." -> @0.450 m. | AK90: =$AG$88/AI90 -> 2.513272 | AL90: ="Ø "&I100&$AJ$90&" ("&FIXED(AK90,2)&" cm2 )" -> Ø 12 @0.450 m. (2.51 cm2 )
D91: W, (T/m) | E91: L, (m) | F91: (T-m/m) | J91: Vc = 0.29*√f'c*bd = | K91: =AG76 -> 10.52528223 | L91: ="T/m "&AI76 -> T/m OK | AA91: =12/7.5 -> 1.6 | AF91: As min1 Backfill = | AG91: =AG89-AG90 -> 2.7 | AH91: =MIN($AG$88/$AG$91,3*$D$14/100,0.45) -> 0.4188786667 | AI91: =FLOOR(1.025*$AH$91,0.025) -> 0.425 | AJ91: =" @ "&FIXED(AI91,3)&" m." -> @ 0.425 m. | AK91: =$AG$88/AI91 -> 2.661111529 | AL91: =$AJ$91&" ("&FIXED(AK91,2)&" cm2 )" -> @ 0.425 m. (2.66 cm2 )
C92: Backfill | D92: =AG69 -> 1.233333333 | E92: =AH69 -> 0.6666666667 | F92: =AI69 -> 0.8222222222 | J92: MR = Rbd2 = | K92: =AG77 -> 10.29314961 | L92: ="T-m/m "&AI77 -> T-m/m OK | AA92: =AA88*AA91 -> 0.3141592654 | AE92: Ver | AF92: As3 | AG92: =D99 -> 12 | AH92: mm
C93: Water table | D93: =AG70 -> 0 | E93: 0 | F93: 0 | J93: As req = M/jsjd = | K93: =AG78 -> 4.044180271 | L93: cm2/m | AF93: As3 | AG93: =3.14159*$AG$92^2/400 -> 1.1309724 | AI93: @
C94: Surcharge | D94: =AG71 -> 0.3333333333 | E94: 1 | F94: 0.3333333333 | AF94: As min.= 2/3* 0.0015·b·t = | AG94: =2/3*AD79*100*(D13+D14)/2 -> 1.8 | AH94: =MIN($AG$93/($AG$94+0.01),3*$D$14/100,0.45) -> 0.45 | AI94: =FLOOR(1.025*$AH$94,0.025) -> 0.45 | AJ94: ="@"&FIXED(AI94,3)&" m." -> @0.450 m. | AK94: =$AG$93/AI94 -> 2.513272 | AL94: =$AJ$94&" ("&FIXED(AK94,2)&" cm2)" -> @0.450 m. (2.51 cm2)
C95: V max = | D95: =SUM(D92:D94) -> 1.566666667 | E95: M max = | F95: =SUM(F92:F94) -> 1.155555556 | J95: Asv min. = | K95: =AG81 -> 5.419201563 | L95: cm2/m
J96: As = | K96: =AG84 -> 5.419201563 | L96: cm2/m | AF96: Heel Design | AH96: Bearing length, Lo | AI96: Heel length, Lh
AF97: Bearing 2 | AG97: =F75 -> 9.465548148 | AH97: =AG54 -> 1.5 | AI97: =AG54-(D17+D14)/100 -> 1.25
F98: =IF($AD$90,"Vert. Bars, As3 .","") -> Vert. Bars, As3 . | H98: Vert. Bars, As1 | I98: 12 | J98: =$AG$86&" ("&FIXED(AH86,2)&" cm2 )" -> @ 0.200 m. (5.65 cm2 ) | AF98: Bearing min | AG98: =F76 -> 0.4144518519
D99: 12 | E99: =IF($AD$90,AL94,"") -> @0.450 m. (2.51 cm2) | AF99: Bearing 1 @Heel = | AG99: =AI97/AH97*(AG97-AG98)+AG98 -> 7.957032099
F100: =IF($AD$90,"Tranv. Bars, As4 .","") -> Tranv. Bars, As4 . | H100: Tranv. Bars, As2 | I100: 12 | J100: =$AJ$91&" ("&FIXED(AK91,2)&" cm2 )" -> @ 0.425 m. (2.66 cm2 ) | AF100: Bearing Force = (B1+B2)/2*Lh = | AG100: =(AG98+AG99)*AI97/2 -> 5.232177469
E101: =IF($AD$90,AL90,"") -> Ø 12 @0.450 m. (2.51 cm2 ) | AF101: Arm = B1*Lh^2/2+(B2-B1)*Lh^2/3 = | AG101: =(AG99*AI97^2/2+(AG98-AG99)*AI97^2/3)/AG100 -> 0.437294822
AG102: Force, T/m | AH102: Arm, m | AI102: Moment, T-m/m
E103: Front Side | H103: Backfill Side | AD103: FALSE | AF103: Upward Pressure = | AG103: =-AG100*IF(AD103,0,1) -> -5.232177469 | AH103: =AG101 -> 0.437294822 | AI103: =AG103*AH103 -> -2.288004115
AF104: Concrete Weight = | AG104: =2.4*(D16*D18)/10000 -> 0.9 | AH104: =D18/200 -> 0.625 | AI104: =AG104*AH104 -> 0.5625
C105: Heel & Toe Design | AF105: Backfill Weight = | AG105: =D27*((D11-D16)*D18)/10000 -> 4.625 | AH105: =AH104 -> 0.625 | AI105: =AG105*AH105 -> 2.890625
C106: Heel Bars | D106: 12 | E106: =$AG$123&" ("&FIXED(AH123,2)&" cm2 )" -> @ 0.175 (6.46 cm2 ) | L106: =AL128 -> Ø 12 @ 0.400 | AF106: Backfill Slope = | AG106: =D27*D18^2*TAN(RADIANS(Slope))/20000 -> 0 | AH106: =2*D18/300 -> 0.8333333333 | AI106: =AG106*AH106 -> 0
C107: Toe Bars | D107: 12 | E107: =$AG$156&" ("&FIXED(AH156,2)&" cm2 )" -> @ 0.200 (5.65 cm2 ) | AF107: Water Weight = | AG107: =D18*MAX(0,(D12-D16))*(D28-D27)/10000 -> 0 | AH107: =AH104 -> 0.625 | AI107: =AG107*AH107 -> 0
C108: Transv. Bars | D108: 12 | E108: =AM127 -> @ 0.400 (5.65 cm2 ) | L108: ="Ø"&D106&$AG$123 -> Ø12 @ 0.175 | AF108: Surcharge load = | AG108: =q*D18/100 -> 0.625 | AH108: =AH104 -> 0.625 | AI108: 0.390625
E109: ( 2 layers ) | AF109: V = | AG109: =SUM(AG103:AG108) -> 0.9178225309 | AH109: M = | AI109: =SUM(AI103:AI108) -> 1.555745885
AF110: d = | AG110: =D16-coverb-D106/20 -> 24.4 | AH110: cm
G111: ="Ø"&$D$107&$AG$156 -> Ø12 @ 0.200 | AF111: Max Shear = | AG111: =AG109 -> 0.9178225309
AF112: Max Moment = | AG112: =AI109 -> 1.555745885
AF113: Vc = 0.29*√f'c*bd = | AG113: =0.29*SQRT('Design criteria'!$G$17)*100*AG110/1000 -> 13.23798383 | AH113: T | AI113: =IF(AG113>=AG111," OK"," N.G") -> OK
C114: Heel Design | E114: Neglect bearing pressure * | AF114: Mr = Rbd² = | AG114: =$K$8*100*AG110^2/100/1000 -> 16.28262714 | AH114: T-m | AI114: =IF(AG114>=AG112," OK"," N.G") -> OK
D115: Force | E115: Lever arm | F115: Moment | J115: d = | K115: =AG110 -> 24.4 | L115: cm | AF115: Ast Req = M/(fs j d) = | AG115: =100000*AI109/('Design criteria'!$G$27*MAIN!$H$8*AG110) -> 4.329026465 | AH115: cm2/m
D116: W, (T/m) | E116: L, (m) | F116: (T-m/m) | J116: Vc = 0.29*√f'c*bd = | K116: =AG113 -> 13.23798383 | L116: ="T/m "&AI113 -> T/m OK | AD116: =IF($D$7=4000,0.0018,0.002) -> 0.0018 | AF116: ="As S&T.= "&FIXED(AD116,4)&" b.t =" -> As S&T.= 0.0018 b.t = | AG116: =AD116*100*D16 -> 5.4 | AH116: cm2/m | AI116: 0.0018·b·t = | AJ116: 0.0018
C117: Upward Pressure | D117: =AG103 -> -5.232177469 | E117: 0.437294822 | F117: -2.288004115 | J117: MR = Rbd2 = | K117: =AG114 -> 16.28262714 | L117: ="T-m/m "&AI114 -> T-m/m OK | AF117: As min.= 14/fy bd = | AG117: =14/$D$7*100*AG110 -> 8.54 | AH117: cm2/m | AI117: 0.0020·b·t = | AJ117: 0.002
C118: Concrete Weight | D118: 0.9 | E118: 0.625 | F118: 0.5625 | J118: As req = M/(js j d) = | K118: =AG115 -> 4.329026465 | L118: cm2/m | AF118: As min.= | AG118: =MIN(AG117,1.34*AG115) -> 5.800895462 | AH118: cm2/m | AI118: 0.0025·b·t = | AJ118: 0.0025
C119: Backfill Weight | D119: =AG105 -> 4.625 | E119: 0.625 | F119: 2.890625 | AF119: Use Main Ø = | AG119: =D106 -> 12 | AH119: mm
C120: Backfill Slope | D120: =AG106 -> 0 | E120: =AH106 -> 0.8333333333 | F120: =AI106 -> 0 | J120: As min. = | K120: =AG118 -> 5.800895462 | L120: cm2/m | AF120: As1 | AG120: =3.14159*$AG$119^2/400 -> 1.1309724
C121: Water Weight | D121: =AG107 -> 0 | E121: =AH107 -> 0.625 | F121: 0 | J121: =AF116 -> As S&T.= 0.0018 b.t = | K121: =AG116 -> 5.4 | L121: cm2/m | AF121: As req = | AG121: =MAX(AG115,AG116,AG118) -> 5.800895462
C122: Surcharge load | D122: =AG108 -> 0.625 | E122: 0.625 | F122: 0.390625 | J122: As = | K122: =AG121 -> 5.800895462 | L122: cm2/m | AF122: @ Min(3t,45,As min) = | AG122: =MIN(AG120/AG121,3*D16/100,0.45) -> 0.1949651407 | AH122: =FLOOR(1.025*$AG122,0.025) -> 0.175
C123: V max = | D123: =SUM(D117:D122) -> 0.9178225309 | E123: M max = | F123: =SUM(F117:F122) -> 1.555745885 | AF123: Use | AG123: =" @ "&FIXED(FLOOR(1.025*$AG$122,0.025),3) -> @ 0.175 | AH123: =AG120/AH122 -> 6.462699429
AF124: Use Ø Transv. = | AG124: =D108 -> 12 | AH124: mm
C125: Toe Design | AE125: Transv. | AF125: As1 | AG125: =3.14159*$AG124^2/400 -> 1.1309724
D126: Force | E126: Lever arm | F126: Moment | J126: d = | K126: =AG143 -> 24.4 | L126: cm | AF126: =AF116 -> As S&T.= 0.0018 b.t = | AG126: =AG116 -> 5.4 | AH126: cm2/m
D127: W, (T/m) | E127: L, (m) | F127: (T-m/m) | J127: Vc = 0.29*√f'c*bd = | K127: =AG146 -> 13.23798383 | L127: ="T/m "&AI146 -> T/m OK | AF127: As min2 layers = | AG127: =AG126/2 -> 2.7 | AH127: =MIN($AG125/($AG127+0.01),3*$D$14/100,0.45) -> 0.4173329889 | AI127: =FLOOR(1.025*AH127,0.05) -> 0.4 | AJ127: =" @ "&FIXED(AI127,3) -> @ 0.400 | AK127: =2*AG125/AI127 -> 5.654862 | AL127: ="Ø "&D108&$AJ$127&" ("&FIXED(AK127,2)&" cm2 )" -> Ø 12 @ 0.400 (5.65 cm2 ) | AM127: =$AJ$127&" ("&FIXED(AK127,2)&" cm2 )" -> @ 0.400 (5.65 cm2 )
C128: Upward Pressure | D128: =AG138 -> 9.465545131e-06 | E128: =AH138 -> 5.000000531e-07 | F128: =AI138 -> 4.732773068e-12 | J128: MR = Rbd2 = | K128: =AG147 -> 16.28262714 | L128: ="T-m/m "&AI147 -> T-m/m OK | AF128: Straight Ld = Max(30,fy/3.5/fc^0.5 | AL128: ="Ø "&D108&$AJ$127 -> Ø 12 @ 0.400
C129: Water Buoyancy | D129: =AG139 -> 0 | E129: 0 | F129: 0 | J129: As req = M/(js j d) = | K129: =AG148 -> 1.316943857e-11 | L129: cm2/m
C130: Concrete Weight | D130: =AG140 -> 0 | E130: 0 | F130: 0
C131: Soil Cover @ Toe | D131: =AG141 -> 0 | E131: 0 | F131: 0 | J131: As min. = | K131: =AG151 -> 1.764704769e-11 | L131: cm2/m | AF131: Toe Design | AH131: Bearing length, Lo | AI131: Toe length, Lt
C132: V max = | D132: =SUM(D128:D131) -> 9.465545131e-06 | E132: M max = | F132: =SUM(F128:F131) -> 4.732773068e-12 | J132: =AF149 -> As S&T.= 0.0018 b.t = | K132: =AG149 -> 5.4 | AF132: Bearing 2 | AG132: =F75 -> 9.465548148 | AH132: =AG54 -> 1.5 | AI132: =IF(D17=0,0.0001,D17)/100 -> 1e-06
J133: As = | K133: =AG154 -> 5.4 | L133: cm2/m | AF133: Bearing min | AG133: =F76 -> 0.4144518519
AF134: Bearing 1 @Toe = | AG134: =(AH132-AI132)/AH132*(AG132-AG133)+AG133 -> 9.465542114
AF135: Bearing Force = (B1+B2)/2*Lt = | AG135: =(AG132+AG134)*AI132/2 -> 9.465545131e-06
AF136: Arm = B1*Toe^2/2+(B2-B1)*Toe^2/3 = | AG136: =(AG134*AI132^2/2+(AG132-AG134)*AI132^2/3)/AG135 -> 5.000000531e-07
AG137: Force, T/m | AH137: Arm, m | AI137: Moment, T-m/m
AF138: Upward Pressure = | AG138: =AG135 -> 9.465545131e-06 | AH138: =AG136 -> 5.000000531e-07 | AI138: =AG138*AH138 -> 4.732773068e-12
AF139: Water Buoyancy = | AG139: =(D12*D17)/10000 -> 0 | AH139: =D17/200 -> 0 | AI139: =AG139*AH139 -> 0
AF140: Concrete Weight = | AG140: =-2.4*(D16*D17)/10000 -> 0 | AH140: =AH139 -> 0 | AI140: =AG140*AH140 -> 0
AF141: Soil Cover @ Toe = | AG141: =-D27*(D17*D19)/10000 -> 0 | AH141: =AH140 -> 0 | AI141: =AG141*AH141 -> 0
AF142: V = | AG142: =SUM(AG138:AG141) -> 9.465545131e-06 | AH142: M = | AI142: =SUM(AI138:AI141) -> 4.732773068e-12
AF143: d = | AG143: =D16-coverb-D107/20 -> 24.4 | AH143: cm
AF144: Max Shear = | AG144: =AG142 -> 9.465545131e-06
AF145: Max Moment = | AG145: =AI142 -> 4.732773068e-12
AF146: Vc = 0.29*√f'c*bd = | AG146: =0.29*SQRT('Design criteria'!$G$17)*100*AG143/1000 -> 13.23798383 | AH146: T | AI146: =IF(AG146>=AG144," OK"," N.G") -> OK
AF147: Mr = Rbd² = | AG147: =$K$8*100*AG143^2/100/1000 -> 16.28262714 | AH147: T-m | AI147: =IF(AG147>=AG145," OK"," N.G") -> OK
AF148: Ast Req = M/(fs j d) = | AG148: =100000*AI142/('Design criteria'!$G$27*MAIN!$H$8*AG143) -> 1.316943857e-11 | AH148: cm2/m
AF149: =AF116 -> As S&T.= 0.0018 b.t = | AG149: =IF($D$7=4000,AJ149,IF($D$7=3000,AJ150,AJ151))*100*D16 -> 5.4 | AH149: cm2/m | AI149: 0.0018·b·t = | AJ149: 0.0018
AB150: 10.06 | AF150: As min.= 14/fy bd = | AG150: =14/$D$7*100*AG143 -> 8.54 | AH150: cm2/m | AI150: 0.0020·b·t = | AJ150: 0.002
D151: SECTION | J151: ELEVATION | AB151: 8.46 | AF151: As min.= | AG151: =MIN(AG150,1.34*AG148) -> 1.764704769e-11 | AH151: cm2/m | AI151: 0.0025·b·t = | AJ151: 0.0025
AB152: =AB150/AB151 -> 1.189125296 | AF152: Use Main Ø = | AG152: =D107 -> 12 | AH152: mm
AF153: As1 | AG153: =3.14159*$AG$152^2/400 -> 1.1309724
AF154: As req = | AG154: =MAX(AG148,AG149,AG151) -> 5.4
AF155: @ Min(3t,45,As min) = | AG155: =MIN(AG153/AG154,3*D16/100,0.45) -> 0.2094393333 | AH155: =FLOOR(1.025*$AG155,0.05) -> 0.2
AF156: Use | AG156: =" @ "&FIXED(FLOOR(1.025*$AG$155,0.05),3) -> @ 0.200 | AH156: =AG153/AH155 -> 5.654862

Sheet Weight
C2: Project | D2: ='Design criteria'!D2 -> RC. Cantilever Retaining Wall L | J2: Cantilever Retaining Wall | P2: วิธีใช้
C3: Owner | D3: ='Design criteria'!D3 -> Advisory Group | J3: Engineer | K3: Wall No. | L3: Date | P3: ป้อนค่าเฉพาะเซล สีน้ำเงิน
C4: Location | D4: ='Design criteria'!D4 -> Chiang Rai | J4: ='Design criteria'!J4 -> Neung Civil | K4: =MAIN!I4 -> RW02 | L4: ='Design criteria'!L4 -> 2021-01-12
C7: APPROXIMATE WEIGHT OF REINFORCEMENT / 1 m.
G9: No. | H9: Dia | I9: Length | J9: Unit Wt | K9: Weight
H10: mm. | I10: m. | J10: kg/m | K10: kg
D11: ` | P11: Criteria | R11: Main
C12: STEM | D12: VERTICAL - Front Side | G12: =X12 -> 2.222222222 | H12: =MAIN!D99 -> 12 | I12: =Z12 -> 2.35 | J12: =(3.14159*H12^2/4)*0.00785 -> 0.887813334 | K12: =G12*I12*J12 -> 4.636358522 | W12: =MAIN!$AD$90 -> TRUE | X12: =W12*(1/MAIN!AI94) -> 2.222222222 | Y12: =(MAIN!D11-2*cover+12*H12/10)/100 -> 2.344 | Z12: =CEILING(Y12,0.05) -> 2.35
D13: VERTICAL - Backfill Side | G13: =X13 -> 5 | H13: =MAIN!I98 -> 12 | I13: =Z13 -> 2.35 | J13: =(PI()*H13^2/4)*0.00785 -> 0.8878140839 | K13: =G13*I13*J13 -> 10.43181549 | X13: =1/MAIN!AH85 -> 5 | Y13: =(MAIN!D11-2*cover+12*H13/10)/100 -> 2.344 | Z13: =CEILING(Y13,0.05) -> 2.35 | AC13: =MAIN!AI90 -> 0.45
D14: TRANSVERSE (Ext & Int) | G14: =X14 -> 9.150326797 | H14: =MAIN!I100 -> 12 | I14: =Z14 -> 1 | J14: =(3.14159*H14^2/4)*0.00785 -> 0.887813334 | K14: =G14*I14*J14 -> 8.123782141 | X14: =AC15 -> 9.150326797 | Y14: 1 | Z14: =CEILING(Y14,0.05) -> 1 | AC14: =MAIN!AI91 -> 0.425
AC15: =(MAIN!D11-MAIN!D16)/100/AC14+W12*((MAIN!D11-MAIN!D16)/100/AC13) -> 9.150326797
C16: BASE | D16: TOP (Heel) | G16: =X16 -> 5.714285714 | H16: =MAIN!D106 -> 12 | I16: =Z16 -> 1.5 | J16: =(PI()*H16^2/4)*0.00785 -> 0.8878140839 | K16: =G16*I16*J16 -> 7.609835005 | X16: =1/MAIN!AH122 -> 5.714285714 | Y16: =MAIN!D15/100 -> 1.5 | Z16: =CEILING(Y16,0.05) -> 1.5
D17: BOTTOM (Toe) | G17: 5 | H17: =MAIN!D107 -> 12 | I17: 1.5 | J17: 0.8878140839 | K17: =G17*I17*J17 -> 6.658605629 | X17: =1/MAIN!AH155 -> 5 | Y17: =Y16 -> 1.5 | Z17: =CEILING(Y17,0.05) -> 1.5
D18: TRANSVERSE ( T & B ) | G18: 7.5 | H18: =MAIN!D108 -> 12 | I18: 1 | J18: 0.8878140839 | K18: =G18*I18*J18 -> 6.658605629 | X18: =2*(MAIN!D15/100)/MAIN!$AI$127 -> 7.5 | Y18: 1 | Z18: =CEILING(Y18,0.05) -> 1
L19: Unit price
C20: SUMMARY | J20: Approx total reinforcement per metre length of wall (kg) | K20: =SUM(K12:K14,K16:K18) -> 44.11900241 | L20: 22.24
J21: Approx total concrete per metre length of wall (m3) | K21: =(MAIN!D35+MAIN!D36)/2.4 -> 0.9 | L21: 1800
J23: Price | K23: =K20*L20+K21*L21 -> 2601.206614 | L23: B/m

Sheet Notes
B2: RC. Cantilever Retaining Wall Design | E2: By NeungCivil
B3: Working Stress Design (WSD) | E3: 9civil@gmail.com
B4: Revision history RETWALL_WSD.xlsm | E4: https://www.facebook.com/thanom.roj
B6: Date | C6: Version | D6: Action | E6: Size (kB)
B8: 2020-04-16 | C8: v.1.03 | D8: แก้ไข กรณี กำแพงรูปตัว L | E8: 596
B9: 2020-04-15 | C9: v.1.02 | D9: ออกแบบ หน้าปกใหม่ | E9: 596
B10: 2020-04-14 | C10: v.1.01 | D10: ปรับปรุง Moment ส่วน Heel และ กราฟ R | E10: 427
B11: 2020-04-13 | C11: v.1.0 | D11: ออกแบบ RC. Cantilever Wall Design | E11: 389
